[Event "Czech Open-GM 2022"]
[Site "Pardubice"]
[Date "2022.07.23"]
[Round "2.4"]
[White "Noe, Christopher"]
[Black "Kistrup, Nicolai"]
[Result "1/2-1/2"]
[ECO "D38"]
[WhiteElo "2505"]
[BlackElo "2310"]
[Annotator "TA"]
[PlyCount "104"]
[EventDate "2022.07.22"]
[EventType "swiss"]
[EventCountry "CZE"]
[SourceTitle "playchess.com"]
[Source "ChessBase"]
[SourceQuality "1"]
[TimeControl "40/5400+30:1800+30"]

{[%evp 9,104,14,28,7,29,-10,-8,-4,-8,-18,-18,-7,-1,-22,1,0,0,-8,0,2,8,12,15,4,5,0,0,16,10,22,52,22,41,-7,0,6,40,17,2,-89,-8,-51,0,-127,-121,-129,-101,-202,-132,-115,-128,-138,-81,-111,-64,-118,-102,-261,-291,-309,-299,-263,-89,-89,-87,-81,-87,-93,-69,-78,-78,-339,-161,-166,-154,-152,-137,-156,-133,-125,-133,-110,0,-75,-75,-75,-75,-75,-75,-75,-75,-75,-75,-77,-77,-77,0]} 1. d4 {[%emt 0:00:04]} Nf6 {[%emt 0:00:07]} 2. c4 {[%emt 0:00:07]} e6 {[%emt 0:00:03]} 3. Nf3 {[%emt 0:00:06]} d5 {[%emt 0:00:06]} 4. Nc3 {[%emt 0:00:38]} Bb4 {[%emt 0:00:21]} 5. cxd5 {[%emt 0:00:46]} exd5 {[%emt 0:00:07]} 6. Bf4 {[%emt 0:02:25] D38: Queen's Gambit Declined: Ragozin Defence (4 Nf3 Bb4).} c5 {[%emt 0:07:39] 6...Ne4 is setting a new trend.} 7. e3 {[%emt 0:00:21]} c4 {[%emt 0:11:47]} (7... Ne4 {is interesting.} 8. Rc1 c4 9. Nd2 Nxd2 10. Qxd2 Bf5) 8. Nd2 {[%emt 0:21:19] The position is equal.} O-O {[%emt 0:19:50]} 9. Be2 {[%emt 0:00:17]} Nc6 {[%emt 0:06:51]} 10. O-O {[%emt 0:00:30]} h6 {[%emt 0:03:24] [#]} 11. Qc2 $146 {[%emt 0:24:14]} ({Predecessor:} 11. a3 Bxc3 12. bxc3 Bf5 13. h4 Ne4 14. Nxe4 Bxe4 15. h5 b5 16. f3 Bh7 17. Rf2 {½-½ (69) Travadon,L (2415)-Dardha,D (2503) Paris 2021}) 11... Ne7 {[%emt 0:19:09]} 12. b3 {[%emt 0:20:13]} Bf5 {[%emt 0:04:01]} 13. Qb2 {[%emt 0:00:07]} Qa5 {[%emt 0:07:29]} 14. Ndb1 {[%emt 0:00:40]} Rac8 $132 {[%emt 0:03:49][%mdl 2048] Black is fighting back} 15. bxc4 {[%emt 0:18:28]} dxc4 {[%emt 0:00:24]} 16. Bf3 {[%emt 0:00:33]} Bxb1 {[%emt 0:06:11]} 17. Nxb1 {[%emt 0:00:20] aiming for a3.} c3 {[%emt 0:02:16]} 18. Qc2 {[%emt 0:00:12]} Nfd5 {[%emt 0:03:21]} 19. Bg3 {[%emt 0:02:52]} f5 {[%emt 0:01:07]} 20. Be5 {[%emt 0:03:40]} (20. a3 $5 {[%cal Ra1a2]} Rc6 21. Rc1 $11) 20... Qb5 {[%emt 0:01:46]} 21. Be2 {[%emt 0:01:51] This bishop pair is nice.} (21. Rc1 $14) 21... Qb6 {[%emt 0:00:15]} 22. Rc1 {[%emt 0:00:23]} Rc6 {[%emt 0:00:44]} 23. Qb3 {[%emt 0:00:40]} Rfc8 {[%emt 0:00:40]} 24. Rc2 {[%emt 0:00:12]} (24. Bf3 $11 {keeps the balance.} Qa5 25. Qc2) 24... Bd6 {[%emt 0:00:25]} (24... Qa5 $17 {White must now prevent ...Rb6.} 25. a4 Rb6) 25. Bb5 {[%emt 0:01:12]} Bxe5 {[%emt 0:00:32]} (25... R6c7 $1 $15 26. Bxd6 Qxd6) 26. dxe5 {[%emt 0:00:42]} (26. Bxc6 $11 Qxb3 27. axb3 Nxc6 28. dxe5) 26... Rc5 $1 $17 {[%emt 0:00:17]} 27. Na3 {[%emt 0:00:13]} a6 {[%emt 0:00:35]} 28. Bd7 {[%emt 0:00:50]} (28. Bc4 $17 Kh7 29. Rd1) 28... R8c7 {[%emt 0:00:37]} 29. Qxb6 {[%emt 0:00:28]} Nxb6 {[%emt 0:00:03]} 30. Be6+ {[%emt 0:00:14]} Kf8 {[%emt 0:00:52]} (30... Kh7 $142 31. Rb1 R7c6) 31. Rd1 {[%emt 0:00:38][%cal Rd1d8]} Ke8 {[%emt 0:00:17] Against Rd8+} ({Black should play} 31... Ned5 $17 32. Bxf5 Nb4) 32. f4 {[%emt 0:00:37]} ({White should try} 32. Rd6 $15 R7c6 33. Rxc6 Nxc6 34. Bxf5) 32... Nbd5 {[%emt 0:00:11]} 33. Nc4 {[%emt 0:00:35]} Rxc4 $19 {[%emt 0:01:07]} 34. Bxd5 {[%emt 0:00:04]} Nxd5 {[%emt 0:00:23]} 35. Rxd5 {[%emt 0:00:04]} Rd7 $2 {[%emt 0:00:28]} (35... Rb4 $1 $19 {[%cal Rb4b1] has better winning chances.} 36. Rd1 Rb2) 36. Rxd7 $17 {[%emt 0:01:20]} Kxd7 {[%emt 0:00:04][%mdl 4096] Endgame KR-KR} 37. Kf2 {[%emt 0:00:13]} b5 {[%emt 0:00:57][%cal Bb7b5,Bb5b4][%mdl 32] And now ...b4 would win.} 38. Ke2 {[%emt 0:00:14]} b4 {[%emt 0:00:18] Hoping for ...Rc5.} 39. Kd3 {[%emt 0:00:22]} Rc7 {[%emt 0:00:40]} 40. e4 $2 {[%emt 0:00:47][%mdl 8192]} (40. Rc1 $17 {was worth a try.}) 40... Ke6 {[%emt 0:00:42]} (40... fxe4+ $142 41. Kxe4 Rc4+ 42. Ke3 Ke6) 41. exf5+ $19 {[%emt 0:09:40]} Kxf5 {[%emt 0:06:44]} 42. Re2 {[%emt 0:00:07]} a5 $1 {[%emt 0:16:21]} ({Worse is} 42... Kxf4 43. e6 Re7 44. Re4+ Kg5 45. Rxb4 $11) 43. g3 {[%emt 0:11:59]} Rc6 {[%emt 0:02:47]} 44. Kc2 {[%emt 0:01:50][%cal Oa2a3]} a4 $1 {[%emt 0:00:15]} 45. Re1 {[%emt 0:05:27]} g5 {[%emt 0:03:28]} (45... Ke6 $17) 46. e6 {[%emt 0:01:10]} (46. g4+ $11 Kxg4 47. e6) 46... Rxe6 $17 {[%emt 0:00:47] Black is better.} 47. g4+ {[%emt 0:00:08]} Kf6 {[%emt 0:00:04]} 48. Rxe6+ {[%emt 0:00:12]} Kxe6 {[%emt 0:00:04]} 49. f5+ {[%emt 0:00:12] [#]} Kd5 $1 {[%emt 0:00:43]} 50. Kd3 {[%emt 0:01:58][%cal Oa2a3] [#]} a3 $1 {[%emt 0:03:08][%cal Ob4b3] ( -> ...b3!)} 51. Kc2 {[%emt 0:00:39]} Ke5 {[%emt 0:00:09]} 52. Kb3 {[%emt 0:01:38]} Kd5 {[%emt 0:00:52] And White is the lucky defender.  Weighted Error Value: White=0.32/Black=0.23 (precise)} (52... Kf6 $17) 1/2-1/2

[Event "Czech Open-GM 2022"]
[Site "Pardubice"]
[Date "2022.07.23"]
[Round "2.5"]
[White "Gnojek, Petr"]
[Black "Lokander, Martin"]
[Result "1-0"]
[ECO "A58"]
[WhiteElo "2295"]
[BlackElo "2483"]
[Annotator "TA"]
[PlyCount "87"]
[EventDate "2022.07.22"]
[EventType "swiss"]
[EventCountry "CZE"]
[SourceTitle "playchess.com"]
[Source "ChessBase"]
[SourceQuality "1"]
[TimeControl "40/5400+30:1800+30"]

{[%evp 9,87,30,34,32,28,28,43,21,10,13,4,-55,-37,-34,-23,-18,-34,-92,-2,-14,18,15,12,15,28,23,23,21,11,12,43,7,23,15,72,67,122,122,122,121,121,121,156,75,120,112,112,112,112,112,113,116,136,136,157,133,136,136,581,570,527,525,482,431,606,589,759,677,1600,1332,1888,1778,1642,1138,1397,1448,1347,1336,1001,698]} 1. d4 {[%emt 0:00:03]} Nf6 {[%emt 0:00:07]} 2. c4 {[%emt 0:00:07]} c5 {[%emt 0:00:05]} 3. d5 {[%emt 0:00:06]} b5 {[%emt 0:00:03]} 4. cxb5 {[%emt 0:00:05]} a6 {[%emt 0:00:03]} 5. bxa6 {[%emt 0:00:06]} e6 {[%emt 0:00:03]} 6. Nc3 {[%emt 0:03:31] A58: Benko/Volga Gambit: Lines with 5 bxa6.} exd5 {[%emt 0:00:07]} 7. Nxd5 {[%emt 0:00:12][%cal Oe2e4]} Nxa6 {[%emt 0:00:06]} 8. g3 {[%emt 0:10:20] White is slightly better.} Nxd5 {[%emt 0:11:17]} 9. Qxd5 {[%emt 0:00:05]} Ra7 {[%emt 0:01:12] [#] And now ...Bb7 would win.} 10. Bd2 $146 {[%emt 0:18:10]} (10. Nf3 $11) ({Predecessor:} 10. Bg2 Be7 11. Nf3 Nb4 12. Qb3 c4 13. Qc3 Rxa2 14. Rxa2 Nxa2 15. Qxc4 Nxc1 16. Qxc1 {1-0 (42) Jelen,I (2422)-Kavcic,Z (2337) Ljubljana 2015}) 10... Bb7 $15 {[%emt 0:05:25][%mdl 1024] Black has compensation.} 11. Qe5+ {[%emt 0:00:05]} Be7 {[%emt 0:00:13][%cal Bf8e7,Be7f6,Bf6e5][%mdl 32]} 12. Nf3 $1 {[%emt 0:00:07]} ({Don't blunder} 12. Qxg7 $2 Bf6 13. Qh6 Bxh1 $19) 12... O-O {[%emt 0:00:56]} 13. Bg2 {[%emt 0:03:18]} ({White should play} 13. Bc3 $15 Bf6 14. Qf5) 13... d5 {[%emt 0:14:02]} (13... Bf6 $17 14. Qf5 Bxb2) 14. O-O $11 {[%emt 0:06:41]} Bf6 {[%emt 0:00:48]} 15. Bg5 $1 {[%emt 0:01:09][%cal Bd2g5,Bg5d8,Bd8b6][%mdl 32] Black must now prevent Bxf6.} Bxe5 {[%emt 0:01:36]} 16. Bxd8 {[%emt 0:00:04]} Bxb2 {[%emt 0:01:52]} 17. Bb6 {[%emt 0:00:07]} Bxa1 {[%emt 0:01:55]} 18. Bxa7 {[%emt 0:00:06]} Bf6 {[%emt 0:06:53]} 19. Rb1 {[%emt 0:00:23]} Ba8 {[%emt 0:00:26]} 20. Rb5 {[%emt 0:09:34]} Be7 {[%emt 0:06:09]} 21. Ne5 {[%emt 0:15:50]} Nc7 {[%emt 0:05:36]} (21... Re8 $11 {remains equal.}) 22. Ra5 $16 {[%emt 0:03:21] 0x0.0013b8fa37bbdp-1022s more active pieces.} ({Not} 22. Bxc5 $2 Nxb5 23. Bxe7 Re8 $19) 22... Ne6 {[%emt 0:00:36] [#]} (22... c4 $1 $14) 23. Nd7 $1 {[%emt 0:02:07][%csl LRc5,LRf8]} Re8 {[%emt 0:03:09]} 24. Bxc5 {[%emt 0:02:53]} Nxc5 {[%emt 0:02:12]} 25. Nxc5 {[%emt 0:00:05]} g6 {[%emt 0:02:00]} 26. e3 {[%emt 0:00:17]} ({White should try} 26. Nb3) 26... Bc6 {[%emt 0:05:34]} 27. Nb3 {[%emt 0:02:17]} Ra8 {[%emt 0:03:34]} 28. Rxa8+ {[%emt 0:03:01]} Bxa8 {[%emt 0:00:12][%mdl 4096] Endgame KBB-KBN} 29. Nd4 {[%emt 0:04:37]} Bf6 {[%emt 0:03:57]} 30. Nb5 {[%emt 0:02:43]} Be5 {[%emt 0:00:04]} 31. f4 {[%emt 0:00:05]} Bb8 {[%emt 0:00:04]} 32. Kf2 {[%emt 0:00:02]} Kf8 {[%emt 0:01:06]} 33. Nc3 {[%emt 0:00:05]} Ke7 $2 {[%emt 0:00:15][%mdl 8192] This move loses the game for Black.} (33... Bc7 $16 {is a better chance.} 34. Bxd5 Ba5 35. Bxa8 Bxc3) 34. Bxd5 $18 {[%emt 0:01:44] White is clearly winning.} Bxd5 {[%emt 0:00:05]} 35. Nxd5+ {[%emt 0:00:04] KB-KN} Kd6 {[%emt 0:00:12]} 36. e4 {[%emt 0:00:56]} h5 {[%emt 0:00:55]} (36... Ba7+ $142 37. Kf3 Bd4) 37. Kf3 {[%emt 0:01:23]} Kc5 {[%emt 0:00:32]} 38. Nf6 {[%emt 0:00:36] [#] Nd7+ is the strong threat.} Kd4 {[%emt 0:01:15]} 39. h4 {[%emt 0:01:06]} Bc7 {[%emt 0:00:28]} 40. Nd7 {[%emt 0:00:11]} Bd6 {[%emt 0:04:12]} 41. Ne5 {[%emt 0:30:07]} f5 {[%emt 0:30:04]} 42. Nc6+ {[%emt 0:01:13]} Kc5 {[%emt 0:00:28]} 43. Nd8 {[%emt 0:03:53]} Kd4 {[%emt 0:03:45]} 44. Ne6+ {[%emt 0:00:13] Weighted Error Value: White=0.11 (very precise) /Black=0.46} 1-0

[Event "Czech Open-GM 2022"]
[Site "Pardubice"]
[Date "2022.07.23"]
[Round "2.6"]
[White "Brejnik, Gustav"]
[Black "Stachowiak, Kamil"]
[Result "0-1"]
[ECO "A58"]
[WhiteElo "2292"]
[BlackElo "2476"]
[Annotator "TA"]
[PlyCount "104"]
[EventDate "2022.07.22"]
[EventType "swiss"]
[EventCountry "CZE"]
[SourceTitle "playchess.com"]
[Source "ChessBase"]
[SourceQuality "1"]
[TimeControl "40/5400+30:1800+30"]

{[%evp 9,104,15,45,38,42,37,43,47,34,18,83,51,49,43,40,0,0,-108,0,0,42,0,0,15,78,67,76,-12,-25,-25,-10,-31,-1,-116,-93,-99,-112,-139,-122,-269,-277,-293,-219,-203,-143,-124,-137,-128,-121,-261,-47,-47,-33,-232,-264,-256,-245,-238,-250,-206,-44,-44,-44,-345,-395,-775,-708,-765,-764,-741,-734,-1066,-1035,-1129,-1127,-6481,-5293,-2745,-2431,-6199,-1339,-5418,-1309,-2720,-2782,-2439,-1915,-1388,0,-1927,-1309,-29987,-29988,-29990,-29991,-29995,-29994]} 1. d4 {[%emt 0:00:02]} Nf6 {[%emt 0:00:08]} 2. c4 {[%emt 0:00:04][%cal Bc2c4,Bc4b5,Bb5a6][%mdl 32]} c5 {[%emt 0:00:16]} 3. d5 {[%emt 0:00:05]} b5 {[%emt 0:00:05]} 4. cxb5 {[%emt 0:00:05]} a6 {[%emt 0:00:06]} 5. bxa6 {[%emt 0:00:08]} g6 {[%emt 0:00:09]} 6. Nc3 {[%emt 0:00:05] A58: Benko/Volga Gambit: Lines with 5 bxa6.} Bg7 {[%emt 0:00:31]} 7. e4 {[%emt 0:00:54] Strongly threatening e5.} O-O {[%emt 0:00:09]} 8. Be2 {[%emt 0:09:36] White is slightly better.} Qa5 {[%emt 0:03:16]} 9. a7 {[%emt 0:11:53]} Qxa7 {[%emt 0:07:08] [#]} (9... Nxe4 $1 $11 10. axb8=R (10. axb8=Q Rxb8 11. Kf1 Nxc3 $11) 10... Rxb8) 10. e5 $146 {[%emt 0:04:15]} ({Predecessor:} 10. Nf3 d6 11. O-O Ba6 12. Nd2 Nbd7 13. a4 Rfb8 14. Ra3 Rb4 15. b3 Ne8 16. Bxa6 Qxa6 {0-1 (81) O'Gorman,T (2357)-Onslow,A (2077) Chess.com INT 2022}) 10... Ne8 {[%emt 0:00:11]} 11. Nf3 {[%emt 0:00:16]} d6 {[%emt 0:07:14]} 12. e6 {[%emt 0:07:15]} fxe6 {[%emt 0:03:01]} 13. Ng5 {[%emt 0:00:51]} (13. h4 $11) 13... Nc7 {[%emt 0:18:14]} (13... exd5 $1 $17 14. Nxd5 (14. Qxd5+ e6 $17) 14... Nc6) 14. O-O $11 {[%emt 0:06:54]} e5 {[%emt 0:11:50]} 15. Bf3 {[%emt 0:20:37]} Qb6 {[%emt 0:16:46]} 16. h4 {[%emt 0:02:26][%cal Bh2h4,Bh4h5][%mdl 32]} Ra7 {[%emt 0:05:27] [#]} (16... Qb7 $11) 17. h5 $1 $16 {[%emt 0:03:17]} h6 {[%emt 0:01:07]} 18. Ne6 {[%emt 0:01:41]} (18. Nge4 $16) 18... Nxe6 {[%emt 0:00:22]} 19. dxe6 {[%emt 0:00:03]} g5 {[%emt 0:05:10]} 20. Nd5 {[%emt 0:10:54]} Qd8 {[%emt 0:01:29]} 21. Bg4 {[%emt 0:00:04]} (21. b4 $11 {remains equal.}) 21... Nc6 $17 {[%emt 0:01:21]} 22. Be3 {[%emt 0:03:32][%cal Ob2b4]} Nd4 {[%emt 0:05:59]} 23. Bxd4 {[%emt 0:00:48]} exd4 {[%emt 0:00:15]} 24. Re1 {[%emt 0:04:36]} (24. a4 $17) 24... Bb7 $19 {[%emt 0:01:41]} 25. Bf3 {[%emt 0:00:38]} Rf5 {[%emt 0:05:46]} 26. Qb3 {[%emt 0:03:23]} g4 {[%emt 0:01:38]} 27. Be4 {[%emt 0:01:34]} Bxd5 {[%emt 0:00:07]} ({Much weaker is} 27... Rxh5 $6 28. Nf4 c4 29. Qxc4 $11) 28. Bxd5 {[%emt 0:00:02]} Rxh5 {[%emt 0:00:12]} 29. Re4 {[%emt 0:01:09] [#]} (29. Rad1 $17 {keeps fighting.}) 29... Rg5 $2 {[%emt 0:00:36]} ({Better is} 29... c4 $1 $19 {[%cal Rc4b3]} 30. Bxc4 d5 31. Rxg4 dxc4 32. Qxc4 Kh8) 30. Rf4 $1 $15 Ra6 $1 {[%emt 0:01:04] aiming for ...Rb6.} 31. Qb7 {[%emt 0:01:39]} (31. Qd3 $15 Rb6 32. Rf7) 31... Rb6 $19 {[%emt 0:00:52]} 32. Qd7 {[%emt 0:00:01]} Rb8 {[%emt 0:00:02]} 33. Qc6 {[%emt 0:01:25]} Rc8 {[%emt 0:00:56]} ({Wrong is} 33... Rxb2 $2 34. Rf7) 34. Qb7 {[%emt 0:00:09]} Rc7 $2 {[%emt 0:01:02]} ({Black should play} 34... c4 $19 {Threatens to win with ...Rc7.} 35. Rd1 Qc7 36. Qxc7 Rxc7 37. Rfxd4 Bxd4 38. Rxd4 c3 39. bxc3 Rxc3) 35. Qb3 $15 {[%emt 0:00:14]} Qc8 $36 {[%emt 0:01:56][%mdl 2048] ...c4 is the strong threat. Black fights for an advantage.} 36. Rf7 $2 {[%emt 0:01:12][%mdl 8192] White is on the road to losing.} ({White must play} 36. Qc4 $1 $15) 36... c4 $19 {[%emt 0:00:30]} 37. Qc2 {[%emt 0:00:01]} (37. Qb5 Bf8 38. Rc1) 37... d3 {[%emt 0:00:35]} (37... Rxd5 $2 {gets mated.} 38. Qg6 Rg5 39. Rxg7+ Kh8 40. Qxh6#) 38. Rxg7+ {[%emt 0:00:51]} Kxg7 {[%emt 0:00:53]} 39. Qc3+ {[%emt 0:00:05]} Kg8 {[%emt 0:00:09]} 40. Be4 {[%emt 0:02:07]} Re5 {[%emt 0:01:17]} 41. Re1 {[%emt 0:35:17]} Qxe6 {[%emt 0:02:11]} 42. f3 {[%emt 0:00:00]} gxf3 {[%emt 0:04:17]} 43. gxf3 {[%emt 0:00:00]} Qf6 {[%emt 0:00:16] And now ...Qh4 would win.} 44. Kf2 {[%emt 0:00:00]} Rcc5 {[%emt 0:04:10]} 45. a4 {[%emt 0:00:00]} Kg7 {[%emt 0:03:00]} 46. Qd4 {[%emt 0:00:00]} Qh4+ {[%emt 0:01:57]} 47. Kf1 {[%emt 0:00:00]} Qh1+ {[%emt 0:00:05]} 48. Kf2 {[%emt 0:00:00]} Qh4+ {[%emt 0:01:16]} 49. Kf1 {[%emt 0:00:00]} Kf8 {[%emt 0:01:00] ( -> ...Rg5)} 50. a5 {[%emt 0:00:00]} Rg5 {[%emt 0:01:21] Black mates.} 51. Qh8+ {[%emt 0:00:00]} Rg8 {[%emt 0:00:06]} 52. Qc3 {[%emt 0:00:00]} Qh2 {[%emt 0:00:47] Weighted Error Value: White=1.19/Black=0.68} 0-1

[Event "Czech Open-GM 2022"]
[Site "Pardubice"]
[Date "2022.07.23"]
[Round "2.7"]
[White "Haring, Filip"]
[Black "Kokoszczynski, Jan"]
[Result "1/2-1/2"]
[ECO "C54"]
[WhiteElo "2451"]
[BlackElo "2297"]
[Annotator "TA"]
[PlyCount "73"]
[EventDate "2022.07.22"]
[EventType "swiss"]
[EventCountry "CZE"]
[SourceTitle "playchess.com"]
[Source "ChessBase"]
[SourceQuality "1"]
[TimeControl "40/5400+30:1800+30"]

{[%evp 14,73,17,15,15,0,0,-9,-14,-16,-7,-5,60,64,58,30,76,76,87,85,79,79,73,80,81,72,94,62,82,22,27,34,39,0,55,36,68,62,81,51,41,0,0,0,0,0,0,0,0,0,0,0,0,0,0,0,0,0,0,0,0,0]} 1. e4 {[%emt 0:00:04]} e5 {[%emt 0:00:07]} 2. Nf3 {[%emt 0:00:08]} Nc6 {[%emt 0:00:21]} 3. Bc4 {[%emt 0:00:15]} Bc5 {[%emt 0:00:26]} 4. c3 {[%emt 0:00:12]} Nf6 {[%emt 0:00:27]} 5. d3 {[%emt 0:00:06]} d6 {[%emt 0:01:39]} 6. O-O {[%emt 0:00:23]} a6 {[%emt 0:03:12]} 7. Bb3 {[%emt 0:02:44]} Ba7 {[%emt 0:00:34]} 8. Nbd2 {[%emt 0:00:32]} h6 {[%emt 0:01:17] C54: Giuoco Piano: 4 c3 Nf6, main lines with 5 d4 and 5 d3.} 9. Re1 {[%emt 0:00:22]} g5 {[%emt 0:02:51][%cal Bg7g5,Bg5g4][%mdl 32]} 10. Nf1 {[%emt 0:00:46]} g4 {[%emt 0:00:25]} 11. N3d2 {[%emt 0:00:09][%cal Bf3d2,Bd2c4,Bc4e3][%mdl 32]} h5 $1 {[%emt 0:00:08]} 12. Nc4 {[%emt 0:00:10]} b5 {[%emt 0:01:00]} (12... d5 $2 13. exd5 Nxd5 14. Nxe5 $18) (12... h4 $11) 13. Nce3 $14 {[%emt 0:01:41]} h4 {[%emt 0:04:02]} 14. d4 {[%emt 0:15:10] [#]} Kf8 $146 {[%emt 0:25:29]} (14... h3 $11) ({Predecessor:} 14... exd4 15. Nd5 Rg8 16. Bf4 Nh5 17. Qd2 g3 18. Kh1 gxf2 19. Qxf2 dxc3 20. Be3 Bxe3 21. Rxe3 {½-½ (35) Jedinger,A (2181)-Hajdarevic,D (2118) Austria 2013}) 15. Bd5 $16 {[%emt 0:15:21]} Nxd5 {[%emt 0:06:04]} 16. exd5 {[%emt 0:03:02]} exd4 {[%emt 0:00:11]} 17. dxc6 {[%emt 0:15:26]} ({But not} 17. Nxg4 Bxg4 18. Qxg4 Ne5 $14) 17... dxe3 {[%emt 0:00:09]} 18. Bxe3 {[%emt 0:00:04]} Bxe3 {[%emt 0:00:26]} 19. Nxe3 {[%emt 0:01:59]} Rg8 {[%emt 0:00:50]} 20. Nd5 {[%emt 0:07:39] Threatens to win with Qd2.} Be6 {[%emt 0:01:55]} 21. a4 {[%emt 0:05:26]} (21. Re4 $16) 21... Bxd5 $11 {[%emt 0:08:51]} 22. Qxd5 {[%emt 0:00:05]} Qg5 {[%emt 0:00:13]} 23. Qd4 {[%emt 0:01:48]} (23. Qd3 $5 {[%cal Ra4b5]} Kg7 24. Re4 $14) 23... Rg7 {[%emt 0:19:52]} (23... h3 $11) 24. Re3 {[%emt 0:11:02]} Kg8 {[%emt 0:04:41]} 25. a5 {[%emt 0:04:34]} Rg6 {[%emt 0:04:43]} 26. Rae1 {[%emt 0:05:25] [#] Intending Re8+ and mate. 0x0.0013b8ecd36edp-1022s more active pieces.} Re6 {[%emt 0:00:43] Prevents Re8+.} 27. Kf1 {[%emt 0:03:09]} Rae8 {[%emt 0:01:38] The position is equal.} 28. Rxe6 {[%emt 0:01:04]} Rxe6 {[%emt 0:05:02]} 29. Rxe6 {[%emt 0:00:05]} fxe6 {[%emt 0:00:04][%mdl 4096] Endgame KQ-KQ} 30. Ke2 {[%emt 0:00:04]} Qf5 {[%emt 0:00:48]} 31. f3 {[%emt 0:03:34]} gxf3+ {[%emt 0:01:45]} 32. gxf3 {[%emt 0:00:01]} Qc2+ {[%emt 0:00:14]} 33. Qd2 {[%emt 0:00:07]} Qf5 {[%emt 0:01:17]} 34. Qd4 {[%emt 0:00:55]} Qc2+ {[%emt 0:00:22]} 35. Qd2 {[%emt 0:00:04]} Qf5 {[%emt 0:00:11]} 36. Qd4 {[%emt 0:03:07]} Qc2+ {[%emt 0:00:18]} 37. Qd2 {[%emt 0:00:06] Weighted Error Value: White=0.13 (very precise) /Black=0.09 (flawless)} 1/2-1/2

[Event "Czech Open-GM 2022"]
[Site "Pardubice"]
[Date "2022.07.23"]
[Round "2.8"]
[White "Kulon, Klaudia"]
[Black "Brodowski, Piotr"]
[Result "0-1"]
[ECO "A45"]
[WhiteElo "2286"]
[BlackElo "2450"]
[Annotator "TA"]
[PlyCount "70"]
[EventDate "2022.07.22"]
[EventType "swiss"]
[EventCountry "CZE"]
[SourceTitle "playchess.com"]
[Source "ChessBase"]
[SourceQuality "1"]
[TimeControl "40/5400+30:1800+30"]

{[%evp 9,70,-29,-27,-68,-63,-67,-55,-61,-43,-51,-49,-86,-80,-103,-105,-114,-83,-126,-121,-131,-116,-138,-122,-95,-58,-80,-80,-80,-80,-87,-79,-81,-79,-79,-42,-42,-20,-64,-62,-65,-65,-53,-55,-60,-58,-77,-77,-139,-149,-262,-185,-235,-228,-207,-178,-174,-145,-847,-827,-846,-839,-804,-684]} 1. d4 {[%emt 0:00:03]} Nf6 {[%emt 0:00:07]} 2. Nc3 {[%emt 0:00:05]} d5 {[%emt 0:01:59]} 3. Bf4 {[%emt 0:00:06]} e6 {[%emt 0:11:57]} 4. Qd2 {[%emt 0:07:27]} c5 {[%emt 0:05:33]} 5. e3 {[%emt 0:03:50]} a6 {[%emt 0:02:10]} 6. f3 {[%emt 0:01:28] D00: 1 d4 d5: Unusual lines.} Nc6 {[%emt 0:00:32]} 7. g4 {[%emt 0:02:52]} Be7 {[%emt 0:07:06]} 8. Nge2 {[%emt 0:04:14] [#] Black is slightly better.} O-O $146 {[%emt 0:05:06]} ({Predecessor:} 8... b5 9. Kf2 g5 10. Bg3 h5 11. gxh5 Rxh5 12. Kg2 Bb7 13. h3 Qd7 14. a4 b4 {½-½ (58) Rasulov,V (2527)-Kazimova,N (2264) Mersin 2018}) 9. h4 {[%emt 0:04:22]} b5 {[%emt 0:02:10][%cal Bb7b5,Bb5b4][%mdl 32]} 10. h5 {[%emt 0:03:54]} Nd7 {[%emt 0:02:45][%cal Bf6d7,Bd7c5,Bc5a4][%mdl 32]} 11. Bg3 {[%emt 0:09:07]} b4 {[%emt 0:12:28]} 12. Nd1 {[%emt 0:02:49]} e5 {[%emt 0:07:51]} 13. dxc5 {[%emt 0:00:34]} Nxc5 {[%emt 0:00:42]} 14. Nf2 {[%emt 0:00:27]} Be6 {[%emt 0:05:09]} 15. f4 {[%emt 0:07:41]} f6 {[%emt 0:05:05] Black is more active.} 16. Bg2 {[%emt 0:01:01]} e4 {[%emt 0:05:35]} 17. Nd4 {[%emt 0:12:00]} Nxd4 {[%emt 0:00:11]} 18. exd4 {[%emt 0:00:13]} Na4 {[%emt 0:00:13]} 19. f5 {[%emt 0:00:05]} Bd7 {[%emt 0:03:09]} 20. Nd1 {[%emt 0:00:07]} Bb5 {[%emt 0:00:49]} 21. b3 {[%emt 0:02:24]} Nc3 {[%emt 0:01:21]} 22. Nxc3 {[%emt 0:00:04]} bxc3 {[%emt 0:00:05]} 23. Qf4 {[%emt 0:00:09]} Ba3 {[%emt 0:04:16]} 24. h6 {[%emt 0:03:16]} g5 {[%emt 0:02:48]} 25. fxg6 {[%emt 0:00:04]} hxg6 {[%emt 0:00:03]} 26. h7+ Kh8 {[%emt 0:00:04] Threatens to win with ...g5.} 27. g5 $1 {[%emt 0:01:37]} Be7 {[%emt 0:03:49]} (27... fxg5 28. Qe5+ Qf6 29. Rd1 $11) 28. a4 {[%emt 0:00:38] [#]} (28. Qe3 $142) 28... Bd7 $1 $17 {[%emt 0:03:43]} ({Don't take} 28... fxg5 29. Qe5+ Bf6 {[#]} 30. axb5 $1 $16) 29. O-O-O {[%emt 0:09:54]} (29. Bf1 $17 {is a better defense.}) 29... Bxa4 {[%emt 0:03:08]} 30. Qc7 {[%emt 0:06:55] Against Qb6} (30. bxa4 $2 {is a self mate.} Ba3+ 31. Kb1 Qb6+ 32. Ka2 Qb2#) (30. gxf6 {might work better.} Bxf6 31. Qd6 (31. bxa4 $2 Bg5 $19)) 30... Qxc7 $19 {[%emt 0:01:16] Really sharp!} 31. Bxc7 {[%emt 0:00:04] Black must now prevent gxf6.} Bd7 {[%emt 0:01:24]} 32. Rdf1 {[%emt 0:02:15]} Rac8 {[%emt 0:01:34]} 33. gxf6 $2 {[%emt 0:01:36][%mdl 8192]} (33. Bf4 $17) 33... Ba3+ {[%emt 0:00:05] Black is clearly winning.} (33... Rxc7 $2 34. fxe7 Rf5 35. Bh3 $18) 34. Kb1 {[%emt 0:00:04]} Rxc7 {[%emt 0:00:03]} 35. Rh6 {[%emt 0:00:44]} Bf5 {[%emt 0:00:15] Weighted Error Value: White=0.42/Black=0.10 (very precise)} 0-1